bitfinex/quotes_ETHUSD_20250904
["timestamp","ask_amount","ask_price","bid_price","bid_amount"]
[1756991959639,0.4591,4414.1,4413.7,3.26732705]
[1756991959822,0.7934,4413.8,4413.7,3.26732705]
[1756991960218,1.2515,4413.8,4413.7,7.10232705]
[1756991961715,0.7934,4413.8,4413.7,3.26732705]
[1756991961916,0.025,4413.8,4413.7,7.41192705]
[1756991963053,0.025,4413.8,4413.7,7.10232705]
[1756991963252,0.328,4413.8,4413.7,7.10232705]
[1756991963420,0.7934,4413.8,4413.7,7.10232705]
[1756991963613,0.4904,4413.8,4413.7,7.10232705]
[1756991963924,0.025,4413.8,4413.7,7.41192705]
[1756991964122,0.025,4413.8,4413.7,8.39145685]
[1756991965921,0.025,4413.8,4413.7,8.39292743]
[1756991966716,0.025,4413.8,4413.7,8.08332743]
[1756991967023,0.328,4413.8,4413.7,7.10379763]
[1756991967241,0.7934,4413.8,4413.7,7.10379763]
[1756991967956,0.328,4413.8,4413.7,7.10379763]
[1756991968866,0.328,4413.8,4413.7,6.89267279]
[1756991969163,0.025,4413.8,4413.7,7.20227279]
[1756991969364,1e-08,4413.8,4413.7,4.01623716]
[1756991969527,1e-08,4413.8,4413.7,7.85023716]
[1756991970223,8.2366037,4413.8,4413.6,0.004]
[1756991970436,7.7409037,4413.8,4413.6,2.2084]
[1756991970646,7.7409037,4413.8,4413.1,0.004]
[1756991970647,3.0,4413.6,4413.1,0.004]
[1756991970846,6.99510369,4413.3,4413.1,0.004]
[1756991971046,7.30040369,4413.2,4413.1,0.004]
[1756991971251,1.51989037,4413.2,4413.1,0.004]
[1756991971449,0.7458,4413.2,4413.1,0.004]
[1756991974160,0.7458,4413.2,4413.1,0.796]
[1756991974362,3.0,4413.6,4413.3,0.792]
[1756991974671,2.5711369,4413.4,4413.1,0.004]
[1756991974839,6.99510369,4413.3,4413.1,0.004]
[1756991975157,7.10159855,4413.2,4413.1,0.004]
[1756991975360,7.40689855,4413.2,4413.1,0.004]
[1756991975577,2.26613488,4412.8,4412.7,0.004]
[1756991975752,9.26123857,4412.8,4412.7,0.004]
[1756991975954,10.00703857,4412.8,4412.7,0.004]
[1756991976159,11.23434858,4412.8,4412.7,0.004]
[1756991976545,15.06934858,4412.8,4412.7,0.004]
[1756991977533,11.07424489,4412.8,4412.7,0.004]
[1756991978768,2.26631902,4412.5,4411.8,0.025]
[1756991978931,14.72960515,4412.3,4411.8,0.025]
[1756991979137,17.30129682,4412.3,4411.8,0.025]
[1756991979342,17.85539682,4412.3,4411.8,0.025]
[1756991979544,2.26659715,4411.9,4411.8,0.025]
[1756991979777,9.10159715,4411.9,4411.8,0.025]
[1756991979967,11.28420925,4411.9,4411.8,0.025]
[1756991980378,11.39780925,4411.9,4411.8,0.025]
[1756991983979,11.39700925,4411.9,4411.8,0.025]
[1756991986881,2.26711102,4410.9,4410.8,0.025]
[1756991987084,7.77311102,4410.9,4410.8,0.025]
[1756991987253,13.90041899,4410.9,4410.8,0.025]
[1756991990448,13.90141899,4410.9,4410.8,0.025]
[1756991991155,9.31861899,4410.9,4410.8,0.029]
[1756991991350,10.88771102,4410.9,4410.8,0.5005]
[1756991991567,7.05071102,4410.9,4410.8,0.5005]
[1756991991763,10.88771102,4410.9,4410.8,0.5005]
[1756991992255,4.7836,4410.9,4410.8,0.7938]
[1756991992452,8.6206,4410.9,4410.8,0.7938]
[1756991994064,8.6206,4410.9,4410.8,0.029]
[1756991994065,12.49557102,4410.9,4410.8,0.029]
[1756991998895,2.26736803,4410.4,4410.3,0.004]
[1756991999081,20.94757318,4410.4,4410.3,0.004]
[1756991999279,21.25287318,4410.4,4410.3,0.004]
[1756991999491,21.69337318,4410.4,4410.3,0.004]
[1756991999674,23.96128115,4410.4,4410.3,0.004]
[1756992005476,23.96128115,4410.4,4409.9,0.004]
[1756992005477,5.26741944,4410.3,4409.9,0.004]
[1756992005786,21.69391312,4410.4,4409.3,0.4577]
[1756992005787,2.26788225,4409.4,4409.3,0.004]
[1756992005992,22.8071874,4409.4,4409.3,0.004]
[1756992006175,23.3755874,4409.4,4409.3,0.004]
[1756992006499,25.64349537,4409.4,4409.3,0.004]
[1756992007200,25.64349537,4409.4,4407.8,0.821]
[1756992007201,2.268088,4409.0,4407.8,0.029]
[1756992007387,3.0,4409.3,4407.8,0.029]
[1756992007388,2.26860254,4408.0,4407.8,0.029]
[1756992007701,11.078354,4407.9,4407.8,0.029]
[1756992008001,10.776654,4407.9,4407.8,0.4827]
[1756992008897,10.776654,4407.9,4407.8,0.7926]
[1756992009292,10.775854,4407.9,4407.8,0.7926]
[1756992010269,12.16012632,4407.9,4407.8,0.4827]
[1756992011091,9.89147232,4407.9,4407.8,0.7926]
[1756992011294,8.5082,4407.9,4407.8,0.7926]
[1756992011593,1.6702,4407.9,4407.8,1.0601]
[1756992011790,5.5082,4407.9,4407.8,1.0601]
[1756992012775,5.5082,4407.9,4407.8,0.7926]
[1756992014803,5.5082,4407.9,4407.8,1.00350826]
[1756992014975,24.34063112,4407.9,4407.8,0.029]
[1756992015604,2.26875694,4407.7,4407.6,0.004]
[1756992015904,9.10675694,4407.7,4407.6,0.004]
[1756992016103,9.86325694,4407.7,4407.6,0.004]
[1756992016306,11.34564617,4407.7,4407.6,0.004]
[1756992017109,11.45924617,4407.7,4407.6,0.004]
[1756992019335,11.45924617,4407.7,4407.3,0.004]
[1756992019503,2.38251137,4407.4,4407.3,0.004]
[1756992019688,9.22151137,4407.4,4407.3,0.004]
[1756992019885,11.57781311,4407.4,4407.3,0.004]
[1756992021194,10.82131311,4407.4,4407.3,0.004]
[1756992021389,10.82131311,4407.4,4407.3,0.4577]
[1756992022435,11.57781311,4407.4,4407.3,0.004]
[1756992022638,2.26911731,4407.0,4406.9,0.004]
[1756992022788,25.7929634,4407.0,4406.9,0.004]
[1756992022992,26.6630634,4407.0,4406.9,0.004]
[1756992023528,26.6630634,4407.0,4406.3,0.4537]
[1756992023529,3.0,4406.9,4406.3,0.4537]
[1756992023693,17.39687237,4406.4,4406.3,0.4537]
[1756992023892,18.96644609,4406.4,4406.3,0.4537]
[1756992024092,0.1136,4406.4,4406.3,0.7636]
[1756992024393,3.9526,4406.4,4406.3,1.0311]
[1756992024726,3.9526,4406.4,4406.3,0.7636]
[1756992025735,0.1136,4406.4,4406.3,3.82507779]
[1756992025905,0.1136,4406.9,4406.4,0.792]
[1756992026227,3.0,4406.7,4406.5,0.4537]
[1756992026401,0.1136,4406.9,4406.5,0.4537]
[1756992026402,3.839,4406.6,4406.5,0.4537]
[1756992026598,3.839,4406.6,4406.5,0.7636]
[1756992026813,3.839,4406.6,4406.5,3.30047478]
[1756992027012,3.839,4406.6,4406.5,1.0311]
[1756992027208,3.839,4406.6,4406.5,0.7636]
[1756992028190,3.839,4406.6,4406.5,3.03297478]
[1756992028519,3.839,4406.6,4406.5,0.7636]
[1756992028824,3.839,4406.6,4406.5,3.03297478]
[1756992029022,0.1136,4406.9,4406.5,0.7636]
[1756992029231,3.839,4406.8,4406.6,0.7212]
[1756992029520,0.1136,4406.9,4406.7,0.7636]
[1756992029720,3.839,4406.8,4406.7,0.3099]
[1756992030523,3.839,4406.8,4406.7,0.7663]
[1756992031114,5.44596,4406.8,4406.3,0.004]
[1756992031326,0.1136,4406.6,4406.4,0.4564]
[1756992031497,3.839,4406.5,4406.3,0.004]
[1756992031916,3.839,4406.5,4406.4,0.309]
[1756992032117,3.839,4406.5,4406.4,0.7654]
[1756992032701,3.839,4406.5,4406.4,0.4564]
[1756992033106,4.1323,4406.5,4406.4,0.4564]
[1756992033831,3.839,4406.5,4406.4,0.4564]
[1756992034000,3.839,4406.5,4406.4,0.7654]
[1756992034813,3.8382,4406.5,4406.4,0.7654]
[1756992035928,3.8382,4406.5,4406.3,0.004]
[1756992036099,3.8382,4406.5,4406.4,0.7654]
[1756992037942,1.671,4407.0,4406.5,0.792]
[1756992038243,4.2903,4406.9,4406.6,0.4564]
[1756992038414,3.0,4406.8,4406.6,0.4564]
[1756992038610,3.839,4406.7,4406.6,0.4564]
[1756992039019,4.1323,4406.7,4406.6,0.4564]
[1756992039938,6.40157179,4406.7,4406.6,0.4564]
[1756992040133,4.1323,4406.7,4406.4,0.792]
[1756992040339,2.56257179,4406.7,4406.6,0.4564]
[1756992040499,2.56257179,4406.7,4406.3,0.1176]
[1756992040500,3.0,4406.6,4406.3,0.004]
[1756992040701,3.839,4406.5,4406.3,0.004]
[1756992041014,3.839,4406.5,4406.4,0.4564]
[1756992041945,4.1323,4406.5,4406.3,0.004]
[1756992042120,0.4513,4406.4,4406.3,0.004]
[1756992042310,2.72072628,4406.4,4406.3,0.004]
[1756992042644,21.14147237,4406.4,4406.3,0.004]
[1756992042940,21.14147237,4406.4,4406.3,0.00013832]
[1756992045339,6.12762628,4406.4,4406.3,0.00013832]
[1756992045633,10.88057338,4406.4,4406.3,0.00013832]
[1756992046607,7.04157338,4406.4,4406.3,0.00013832]
[1756992046946,6.9526,4406.4,4406.3,0.45653832]
[1756992047142,9.51532628,4406.4,4406.3,0.45653832]
[1756992047831,7.6972,4406.4,4406.3,0.45653832]
[1756992048030,0.4574,4406.6,4406.3,0.76553832]
[1756992048245,3.9526,4406.5,4406.4,0.4564]
[1756992048442,6.9526,4406.5,4406.4,0.406]
[1756992048636,9.51527478,4406.5,4406.4,0.406]
[1756992048943,5.26942628,4406.4,4406.3,0.00013832]
[1756992049111,5.72072628,4406.4,4406.3,0.00013832]
[1756992049314,6.01402628,4406.4,4406.3,0.00013832]
[1756992050819,6.31592347,4406.4,4406.3,0.00013832]
[1756992051019,6.31592347,4406.4,4405.8,0.029]
[1756992051020,2.26968383,4405.9,4405.8,0.029]
[1756992051220,25.90812992,4405.9,4405.8,0.029]
[1756992051446,2.26988991,4405.5,4404.3,0.57]
[1756992051747,2.26988991,4405.5,4404.3,0.4564]
[1756992051748,9.22248991,4405.5,4404.3,0.4564]
[1756992051944,9.96708991,4405.5,4404.3,0.4564]
[1756992052118,11.22097041,4405.5,4404.3,0.4564]
[1756992052535,11.33428026,4405.5,4404.3,0.4564]
[1756992053145,11.79068026,4405.5,4404.3,0.4564]
[1756992053647,11.67737041,4405.5,4404.7,0.4564]
[1756992053820,11.67737041,4405.5,4403.8,0.817]
[1756992053821,7.2954,4405.5,4405.4,0.7694]
[1756992054025,9.22248991,4405.5,4405.4,0.4604]
[1756992054622,9.51578991,4405.5,4405.4,0.004]
[1756992055556,9.96708991,4405.5,4405.4,0.004]
[1756992056663,9.22248991,4405.5,4405.4,0.004]
[1756992056825,11.49039788,4405.5,4405.4,0.4604]
[1756992057238,12.23499788,4405.5,4405.4,0.004]
[1756992058046,11.78369788,4405.5,4405.4,0.004]
[1756992058455,11.49039788,4405.5,4405.4,0.4604]
[1756992059160,0.1136,4405.5,4405.4,0.7694]
[1756992059367,3.4536,4405.5,4405.4,1.0369]
[1756992060257,3.4528,4405.5,4405.4,1.0369]
[1756992060571,3.4528,4405.5,4405.4,0.7796]
[1756992060771,6.10988991,4405.5,4405.4,0.004]
[1756992060927,10.72131891,4405.5,4405.4,0.004]
[1756992061324,11.21621891,4405.5,4405.4,0.004]
[1756992061936,10.45411891,4405.5,4405.4,0.004]
[1756992062135,3.4949,4405.5,4405.4,0.3097]
[1756992062375,6.9536,4405.5,4405.4,0.7796]
[1756992062539,9.98558991,4405.5,4405.4,0.004]
[1756992063449,9.22348991,4405.5,4405.4,0.004]
[1756992063651,9.22348991,4405.5,4405.4,0.7796]
[1756992063652,3.1136,4405.5,4405.4,0.7796]
[1756992064042,9.22348991,4405.5,4405.4,0.7796]
[1756992064360,3.1136,4405.5,4405.4,0.7796]
[1756992064528,6.9536,4405.5,4405.4,0.7796]
[1756992064730,0.1136,4405.5,4405.4,1.0471]
[1756992064931,3.9536,4405.5,4405.4,1.1117083]
[1756992065165,3.9536,4405.5,4405.4,0.4739]
[1756992065465,3.84,4405.5,4405.4,0.7796]
[1756992066748,6.41248991,4405.5,4405.4,0.004]
[1756992067160,6.10988991,4405.5,4405.4,0.004]
[1756992067770,3.84,4405.5,4405.4,0.3097]
[1756992067967,3.84,4405.5,4405.4,0.7796]
[1756992068473,2.38346142,4405.6,4405.4,0.7796]
[1756992068474,0.1136,4405.6,4405.4,0.7796]
[1756992068674,2.38343975,4405.6,4405.5,0.4699]
[1756992068876,9.22343975,4405.6,4405.5,0.7756]
[1756992069780,3.1136,4405.6,4405.5,0.7756]
[1756992069980,3.839,4405.6,4405.5,0.7756]
[1756992070590,1.672,4405.9,4405.6,0.792]
[1756992070755,6.839,4405.8,4405.7,0.4699]
[1756992070953,1.672,4405.9,4405.8,3.83733534]
[1756992071159,5.511,4405.9,4405.8,1.5676]
[1756992071650,7.78068383,4405.9,4405.8,0.4699]
[1756992071857,5.511,4405.9,4405.8,0.7756]
[1756992072399,8.80661055,4405.9,4405.7,0.1136]
[1756992072693,2.26988991,4405.5,4405.4,0.004]
[1756992072867,6.10888991,4405.5,4405.4,0.004]
[1756992073062,9.87098991,4405.5,4405.4,0.004]
[1756992073367,11.19866759,4405.5,4405.4,0.004]
[1756992073689,10.43656759,4405.5,4405.4,0.004]
[1756992073904,9.22248991,4405.5,4405.4,0.004]
[1756992074079,6.9526,4405.5,4405.4,0.7796]
[1756992074282,6.839,4405.5,4405.4,0.7796]
[1756992074580,9.41148991,4405.5,4405.4,0.004]
[1756992074878,9.87098991,4405.5,4405.4,0.004]
[1756992075247,11.09642863,4405.5,4405.4,0.004]
[1756992076892,10.7279191,4405.5,4405.4,0.004]
[1756992077105,11.1874191,4405.5,4405.4,0.004]
[1756992081065,0.001,4406.4,4405.4,5.28154143]
[1756992081265,0.001,4407.1,4406.7,2.26927179]
[1756992081613,0.001,4407.1,4406.8,3.06122029]
[1756992081819,0.001,4407.1,4406.8,4.13733671]
[1756992082101,0.001,4407.1,4406.8,4.96828001]
[1756992085633,0.0002,4406.9,4406.8,7.96828001]
[1756992085793,0.0002,4406.9,4406.8,7.96724816]
[1756992088304,0.0002,4406.9,4406.8,11.83024816]
[1756992091789,0.0002,4406.9,4406.8,7.96724816]
[1756992092003,0.0002,4406.9,4406.8,11.82724816]
[1756992093017,0.001,4408.3,4406.8,11.82724816]
[1756992093243,0.001,4408.3,4407.4,6.06091137]
[1756992093244,1e-08,4407.5,4407.4,6.06091137]
[1756992093555,1e-08,4407.5,4407.4,11.91441839]
[1756992093730,1e-08,4407.5,4407.4,8.43781788]
[1756992093929,1e-08,4407.5,4407.4,12.29581788]
[1756992094138,1e-08,4407.5,4407.4,12.76901788]
[1756992094461,1e-08,4407.5,4407.4,9.56303873]
[1756992094747,1e-08,4407.5,4407.4,12.94683873]
[1756992096313,1e-08,4407.5,4407.4,12.94483873]
[1756992097433,1e-08,4407.5,4407.4,12.65533873]
[1756992097955,1e-08,4407.5,4407.4,12.65433873]
[1756992098338,1e-08,4407.5,4407.4,12.44343171]
[1756992099249,0.77420001,4407.5,4407.4,4.35498911]
[1756992099555,1.21150001,4407.5,4407.4,6.23551137]
[1756992099750,1.21150001,4407.5,4407.4,7.02751137]
[1756992101836,1.21150001,4407.5,4407.4,7.02651137]
[1756992102928,1.21150001,4407.5,4407.4,0.9056]
[1756992103134,1.33525001,4407.5,4407.4,0.1136]
[1756992103336,1.33525001,4407.5,4407.1,0.1136]
[1756992103639,1.33525001,4407.5,4406.9,2.26916583]
[1756992103848,0.9106,4407.4,4406.9,2.38276583]
[1756992104144,0.9106,4407.4,4406.9,0.1136]
[1756992106365,1e-08,4407.5,4407.4,3.46401137]
[1756992106511,1e-08,4407.5,4407.4,8.33256382]
[1756992106715,1e-08,4407.5,4407.4,8.06925969]
[1756992106916,1e-08,4407.5,4407.4,8.06926912]
[1756992108056,1.21150001,4407.5,4407.4,1.1155053]
[1756992108217,1.21150001,4407.5,4407.4,3.38441667]
[1756992108412,0.73820001,4407.5,4407.4,3.38441667]
[1756992108643,1e-08,4407.5,4407.4,3.17451137]
[1756992108951,1e-08,4407.5,4407.4,3.67391667]
[1756992109146,1e-08,4407.5,4407.4,3.38441667]
[1756992109453,1e-08,4407.5,4407.4,3.38496564]
[1756992110133,1.21150001,4407.5,4407.4,1.11601359]
[1756992110337,1.21150001,4407.5,4407.4,3.38492496]
[1756992110542,1.33525001,4407.5,4407.4,0.21041359]
[1756992110850,1.33525001,4407.5,4407.0,0.1136]
[1756992111050,1.33445001,4407.5,4407.1,0.21090098]
[1756992111261,3.60331368,4407.5,4407.2,0.21090098]
[1756992111418,3.60331368,4407.5,4407.3,0.21090098]
[1756992111622,3.60331368,4407.5,4407.1,0.792]
[1756992111623,0.75659137,4407.4,4407.1,0.792]
[1756992111823,0.4373,4407.3,4407.2,0.21134782]
[1756992112141,1.2115,4407.3,4407.2,0.21134782]
[1756992114723,2.26901513,4407.2,4406.8,0.796]
[1756992114922,2.26901513,4407.2,4406.9,0.21151377]
[1756992115153,3.17966582,4407.1,4407.0,0.21151377]
[1756992115335,3.17966582,4407.1,4406.8,0.796]
[1756992115336,3.48056582,4407.1,4406.8,0.796]
[1756992115531,3.48056582,4407.1,4406.9,1.00332139]
[1756992115532,0.9106,4407.0,4406.9,1.00332139]
[1756992115945,3.48061731,4407.0,4406.9,0.792]
[1756992116148,1.2115,4407.0,4406.9,0.792]
[1756992116352,7.91394129,4407.0,4406.8,0.004]
[1756992117042,5.1715142,4407.0,4406.8,0.004]
[1756992117354,0.4733,4406.9,4406.8,0.004]
[1756992117853,0.9106,4406.9,4406.8,0.21517692]
[1756992118054,1.2115,4406.9,4406.8,0.21517692]
[1756992118278,1.2115,4406.9,4406.8,0.004]
[1756992118462,7.38052629,4406.9,4406.8,0.004]
[1756992118760,11.34312629,4406.9,4406.8,0.004]
[1756992119146,2.26942628,4406.4,4405.9,0.004]
[1756992119348,2.26963231,4406.0,4405.9,0.004]
[1756992119658,2.26963231,4406.0,4405.4,0.004]
[1756992119659,2.26988991,4405.5,4405.4,0.004]
[1756992119860,7.79288991,4405.5,4405.4,0.004]
[1756992120157,9.00438991,4405.5,4405.4,0.004]
[1756992120357,9.11798991,4405.5,4405.4,0.004]
[1756992120559,10.55677041,4405.5,4405.4,0.004]
[1756992125477,5.521,4405.5,4405.4,0.004]
[1756992125780,6.2857,4405.5,4405.4,0.004]
[1756992126167,5.523,4405.5,4405.4,0.3104]
[1756992126376,5.523,4405.5,4405.4,3.84084143]
[1756992126578,5.523,4405.5,4405.4,1.1024]
[1756992126771,5.523,4405.5,4405.4,3.37234143]
[1756992127566,5.523,4405.5,4405.4,1.1024]
[1756992128068,5.523,4405.5,4405.4,3.48594143]
[1756992128466,5.523,4405.5,4405.4,1.216]
[1756992128669,5.523,4405.5,4405.4,0.9096]
[1756992128967,6.2877,4405.5,4405.4,0.796]
[1756992129170,9.46275906,4405.5,4405.4,0.004]
[1756992129372,7.68706915,4405.5,4405.4,0.004]
[1756992129593,7.30646915,4405.5,4405.4,0.004]
[1756992130079,10.07055906,4405.5,4405.4,0.004]
[1756992130376,13.07055906,4405.5,4405.4,0.004]
[1756992131385,24.83874649,4405.5,4405.4,0.004]
[1756992135597,2.26994143,4405.4,4405.3,0.004]
[1756992135797,12.7648494,4405.4,4405.3,0.004]
[1756992135962,14.0237494,4405.4,4405.3,0.004]
[1756992136591,14.0229494,4405.4,4405.3,0.004]
[1756992137165,17.8759494,4405.4,4405.3,0.004]
[1756992140280,17.8739494,4405.4,4405.3,0.004]
[1756992145083,17.8739494,4405.4,4405.3,0.00029753]
[1756992145485,2.27014755,4405.0,4404.9,0.004]
[1756992145779,9.98777013,4405.0,4404.9,0.004]
[1756992145987,11.24667013,4405.0,4404.9,0.004]
[1756992147104,2.27035372,4404.6,4403.8,0.025]
[1756992147306,5.27071459,4403.9,4403.8,0.025]
[1756992147618,5.27071459,4403.9,4401.5,0.4685]
[1756992147619,20.81795523,4403.9,4401.5,0.4685]
[1756992147906,2.27123032,4402.9,4402.1,0.4685]
[1756992148112,10.79523032,4402.9,4402.1,0.4685]
[1756992148271,4.673,4402.9,4402.8,0.3314]
[1756992148473,10.79523032,4402.9,4402.8,0.7999]
[1756992148669,6.94423032,4402.9,4402.8,0.7999]
[1756992148900,8.523,4402.9,4402.8,1.1052]
[1756992149120,10.79423032,4402.9,4402.8,0.7999]
[1756992149270,8.523,4402.9,4402.8,0.3314]
[1756992149472,8.523,4402.9,4402.8,1.1052]
[1756992149910,8.523,4402.9,4402.8,0.7999]
[1756992150208,8.523,4402.9,4402.8,1.1052]
[1756992150708,5.522,4402.9,4402.8,1.8972]
[1756992150873,1.673,4402.9,4402.8,1.8972]
[1756992151205,1.673,4403.6,4403.3,0.792]
[1756992151409,3.85,4403.5,4403.4,0.771]
[1756992151590,3.85,4403.5,4403.4,0.7682]
[1756992151774,3.85,4403.5,4403.4,0.3025]
[1756992152177,6.12092085,4403.5,4403.4,0.3025]
[1756992152409,2.27112716,4403.1,4402.8,0.025]
[1756992152712,3.9646,4403.0,4402.8,0.025]
[1756992153278,3.9646,4403.0,4402.9,0.3025]
[1756992153800,6.23577874,4403.0,4402.9,0.3025]
[1756992155906,3.9646,4403.0,4402.9,0.3025]
[1756992156119,3.9636,4403.0,4402.9,1.0735]
[1756992156280,3.9636,4403.0,4402.9,0.7682]
[1756992156477,1.673,4403.6,4403.0,2.27117038]
[1756992156783,0.1136,4403.3,4403.1,0.4657]
[1756992156978,0.1136,4403.3,4403.2,0.792]
[1756992157175,3.85,4403.3,4403.2,1.8655]
[1756992157925,3.85,4403.3,4403.2,4.13657558]
[1756992158084,1.673,4403.6,4403.2,1.8655]
[1756992158285,3.851,4403.5,4403.3,0.4657]
[1756992158777,3.851,4403.5,4403.4,0.3025]
[1756992159578,3.851,4403.5,4403.4,3.03917243]
[1756992159919,1.673,4403.6,4403.5,3.06292085]
[1756992160089,1.673,4403.6,4403.5,1.2577]
[1756992160090,5.523,4403.6,4403.5,1.2577]
[1756992160291,5.523,4403.6,4403.5,1.5602]
[1756992161983,5.5222,4403.6,4403.5,1.5602]
[1756992163120,1.6722,4403.6,4403.5,3.83112085]
[1756992163348,1.6722,4403.6,4403.5,4.75799439]
[1756992163349,5.5222,4403.6,4403.5,4.75799439]
[1756992163521,5.5222,4403.6,4403.5,1.0945]
[1756992164420,5.8122,4403.6,4402.4,0.3093]
[1756992164600,2.2709366,4403.5,4403.1,0.792]
[1756992164784,6.3961,4403.6,4403.1,0.792]
[1756992164785,3.85,4403.4,4403.1,0.792]
[1756992165220,1.6722,4403.6,4403.4,0.792]
[1756992165421,3.85,4403.5,4403.4,3.3682249]
[1756992165717,3.85,4403.5,4403.4,1.0945]
[1756992167630,1.6722,4403.6,4403.4,1.5602]
[1756992167814,3.849,4403.5,4403.4,1.0945]
[1756992169639,1.6722,4403.6,4403.5,3.06292085]
[1756992169806,5.5192,4403.6,4403.5,4.13642085]
[1756992170542,5.5192,4403.6,4403.5,3.83112085]
[1756992172111,1.6722,4403.6,4403.5,3.83112085]
[1756992172313,0.001,4403.8,4403.7,3.06281772]
[1756992172724,0.001,4403.8,4403.7,3.83101772]
[1756992175726,0.001,4403.8,4403.7,4.13631772]
[1756992176249,0.001,4403.8,4403.7,9.77291949]
[1756992176426,0.001,4403.8,4403.7,11.05387396]
[1756992178254,0.001,4403.8,4403.7,11.22143973]
[1756992181324,0.001,4403.8,4403.7,3.99858349]
[1756992181573,0.7479,4403.8,4403.7,2.27081772]
[1756992181726,1.2339,4403.8,4403.7,2.27081772]
[1756992182045,0.001,4403.8,4403.7,2.27081772]
[1756992182253,0.001,4403.8,4403.7,3.37881772]
[1756992182430,0.001,4403.8,4403.7,3.83451772]
[1756992182628,0.001,4403.8,4403.7,8.56034927]
[1756992182974,0.001,4403.8,4403.7,8.5376411]
[1756992183735,0.001,4403.8,4403.7,12.3846411]
[1756992184461,0.001,4404.3,4404.2,3.06255992]
[1756992184642,0.001,4404.3,4404.2,21.51072504]
[1756992184849,0.001,4404.3,4404.2,22.56501945]
[1756992185441,0.001,4404.3,4404.2,26.3025476]
[1756992186556,0.001,4404.3,4404.2,26.41411683]
[1756992186738,0.001,4404.3,4404.2,26.26411683]
[1756992186953,0.026,4405.8,4405.7,3.06178686]
[1756992187467,0.0252,4405.8,4405.7,3.37778686]
[1756992187836,0.0252,4405.8,4405.7,3.82383158]
[1756992188070,0.0252,4405.8,4405.7,7.66883158]
[1756992188638,0.0252,4405.8,4405.7,7.35383158]
[1756992189171,0.0252,4405.8,4405.7,7.66983158]
[1756992190775,0.0252,4405.8,4405.7,7.35383158]
[1756992190943,0.0252,4405.8,4405.7,7.66983158]
[1756992191143,0.0252,4405.8,4405.7,7.66783158]
[1756992191484,0.0252,4405.8,4405.7,7.35183158]
[1756992192348,0.7721,4405.8,4405.7,3.06178686]
[1756992192545,0.7721,4405.8,4404.8,2.1287]
[1756992192546,1.2581,4405.8,4404.8,1.673]
[1756992192770,0.9349,4405.7,4405.6,2.26983838]
[1756992192973,1.2329,4405.7,4405.6,3.06183838]
[1756992193169,1.2329,4405.7,4405.6,3.17543838]
[1756992193399,1.2329,4405.7,4405.6,2.38343838]
[1756992193584,1.2329,4405.7,4405.6,0.9056]
[1756992193787,1.2329,4405.7,4405.6,3.17543838]
[1756992194095,1.2329,4405.7,4405.6,0.9056]
[1756992194300,1.2329,4405.7,4405.6,3.17543838]
[1756992194598,1.2329,4405.7,4405.6,0.9056]
[1756992194886,1.2329,4405.7,4405.6,3.17543838]
[1756992195789,1.2329,4405.7,4405.6,0.9056]
[1756992197581,1.35871,4405.7,4405.6,0.9056]
[1756992197966,1.35971,4405.7,4405.6,0.9056]
[1756992198477,5.20171,4405.7,4405.6,0.9056]
[1756992198869,7.47149686,4405.7,4404.7,3.06226429]
[1756992199067,0.9349,4405.6,4405.4,0.792]
[1756992199268,1.2329,4405.5,4405.4,0.792]
[1756992199979,3.842,4405.6,4405.4,0.792]
[1756992200478,0.7469,4405.5,4405.4,0.792]
[1756992200779,1.2329,4405.5,4405.4,0.792]
[1756992203099,3.842,4405.6,4405.4,3.06194143]
[1756992203296,0.298,4405.5,4405.4,3.06194143]
[1756992203450,0.298,4405.5,4405.4,0.792]
[1756992203451,1.2329,4405.5,4405.4,0.792]
[1756992203658,1.91021,4405.5,4405.4,0.792]
[1756992206613,1.2329,4405.5,4405.4,0.792]
[1756992208690,3.842,4405.6,4405.4,3.377896]
[1756992208893,0.298,4405.5,4405.4,0.792]
[1756992209207,1.2329,4405.5,4405.4,0.792]
[1756992210485,0.7469,4405.5,4405.4,0.792]
[1756992212807,0.7461,4405.5,4405.4,0.792]
[1756992213104,3.842,4405.6,4405.4,1.1035]
[1756992213290,3.842,4405.6,4405.5,3.06188991]
[1756992213475,3.842,4405.6,4405.5,3.37338991]
[1756992214492,3.842,4405.6,4405.5,3.82408991]
[1756992214672,3.842,4405.6,4405.5,4.13018991]
[1756992214872,3.842,4405.6,4405.5,3.82408991]
[1756992215074,3.842,4405.6,4405.5,3.37338991]
[1756992215280,3.842,4405.6,4405.5,3.06188991]
[1756992216396,3.842,4405.6,4405.5,3.37338991]
[1756992218598,3.843,4405.6,4405.5,3.37338991]
[1756992219110,4.5888,4405.6,4405.5,0.792]
[1756992219310,4.5888,4405.6,4405.5,3.06188991]
[1756992221611,4.1555,4405.6,4405.5,3.06188991]
[1756992221983,4.5888,4405.6,4405.5,3.06188991]
[1756992223078,4.5888,4405.6,4405.5,0.792]
[1756992223483,5.0712,4405.6,4405.5,0.792]
[1756992223714,5.8079127,4405.6,4405.5,0.792]
[1756992223897,5.8079127,4405.6,4405.3,0.1176]
[1756992224284,5.3255127,4405.6,4405.3,0.1176]
[1756992224610,0.4824,4405.5,4405.4,0.792]
[1756992224817,0.9157,4405.5,4405.4,0.792]
[1756992225112,1.2282,4405.5,4405.4,0.792]
[1756992225311,2.26994143,4405.4,4405.3,0.004]
[1756992225484,7.78294143,4405.4,4405.3,0.004]
[1756992225684,9.01114143,4405.4,4405.3,0.004]